fUST/lending_fUST_20251021
["ID","MTS","AMOUNT","RATE_DAILY","PERIOD"]
[391975690,1761048638219,-588.05861221,0.00033836,2]
[391975693,1761048638230,-250.0,0.00033836,10]
[391975695,1761048638239,-250.0,0.00033836,10]
[391975696,1761048638248,-250.0,0.00033836,10]
[391975698,1761048638258,-250.0,0.00033836,10]
[391975700,1761048638267,-250.501735,0.00033836,10]
[391975702,1761048638276,-35399.08474419,0.00033836,4]
[391975704,1761048638286,-5626.0,0.00033837,2]
[391975707,1761048638296,-1137.28532618,0.000339,120]
[391975708,1761048638305,-168.0,0.00034021,2]
[391975710,1761048638315,-154.353236,0.00034061,2]
[391975712,1761048638324,-168.0,0.00034779,2]
[391975715,1761048638335,-501.0,0.00034836,120]
[391975716,1761048638344,-1444.0,0.00034849,120]
[391975718,1761048638354,-154.353236,0.00034886,14]
[391975721,1761048638365,-1137.28532618,0.000349,120]
[391975723,1761048638374,-191.48188076,0.000349,120]
[391975725,1761048638384,-981.91292872,0.000349,120]
[391975726,1761048638393,-154.353236,0.00035184,20]
[391975729,1761048638403,-1725.71553977,0.0003519,2]
[391975730,1761048638412,-946.54,0.000352,7]
[391975732,1761048638422,-250.0,0.000354,10]
[391975735,1761048638431,-324.0,0.000355,2]
[391975737,1761048638441,-250.0,0.000355,10]
[391975739,1761048638450,-168.0,0.00035592,2]
[391975741,1761048638460,-250.0,0.000356,10]
[391975742,1761048638470,-431.149845,0.000357,10]
[391975744,1761048638480,-168.0,0.00035705,2]
[391975746,1761048638493,-502.0,0.00035836,120]
[391975748,1761048638502,-1223.07,0.00035836,2]
[391975750,1761048638511,-168.0,0.00035886,2]
[391975752,1761048638521,-600.0,0.00035946,2]
[391975754,1761048638530,-150.0,0.00036045,2]
[391975756,1761048638539,-150.0,0.00036045,2]
[391975758,1761048638548,-150.0,0.00036045,2]
[391975760,1761048638558,-150.0,0.00036045,2]
[391975762,1761048638568,-983.0,0.00036045,2]
[391975764,1761048638578,-632.0,0.00036045,2]
[391975766,1761048638587,-2164.0,0.00036045,2]
[391975768,1761048638598,-411.0,0.00036045,2]
[391975770,1761048638607,-411.0,0.00036045,2]
[391975772,1761048638617,-168.0,0.00036135,2]
[391975774,1761048638626,-158.46756254,0.00036164,30]
[391975777,1761048638636,-168.63598432,0.00036194,30]
[391975779,1761048638645,-168.0,0.00036288,2]
[391975781,1761048638655,-600.0,0.00036321,2]
[391975783,1761048638664,-168.0,0.00036553,2]
[391975784,1761048638674,-154.353236,0.00036623,20]
[391975785,1761048638684,-153.525351,0.00036623,20]
[391975786,1761048638694,-601.28433051,0.00036695,2]
[391975787,1761048638703,-154.353236,0.0003678,2]
[391975788,1761048638712,-153.525351,0.0003678,2]
[391975789,1761048638722,-154.353236,0.00036784,14]
[391975790,1761048638744,-153.525351,0.00036784,14]
[391975791,1761048638754,-217.31403742,0.00036822,2]
[391975792,1761048638765,-503.0,0.00036836,120]
[391975793,1761048638775,-1725.71553977,0.0003699,3]
[391975794,1761048638784,-188.2921001,0.00036999,15]
[391975795,1761048638794,-38010.97397524,0.00037,30]
[391975796,1761048638804,-946.54,0.00037,7]
[391975797,1761048638814,-154.353236,0.00037023,15]
[391975798,1761048638823,-855.42206931,0.000371,2]
[391975799,1761048638833,-9691.12,0.000371,17]
[391975800,1761048638844,-168.0,0.0003711,2]
[391975801,1761048638854,-1012.422918,0.0003716,11]
[391975802,1761048638864,-3684.60943688,0.0003716,2]
[391975804,1761048638874,-855.4220693,0.00037161,2]
[391975806,1761048638884,-1000.0,0.0003718,11]
[391975808,1761048638894,-1725.71553977,0.0003719,3]
[391975810,1761048638905,-1000.0,0.000372,11]
[391975812,1761048638915,-800.0,0.000372,7]
[391975814,1761048638926,-800.0,0.00037211,7]
[391975816,1761048638935,-1000.0,0.0003722,11]
[391975818,1761048638946,-855.4220693,0.00037222,2]
[391975820,1761048638958,-1725.71553977,0.00037234,3]
[391975822,1761048638969,-1000.0,0.0003724,11]
[391975824,1761048638982,-8761.83866256,0.00037244,14]
[391975827,1761048638993,-3684.60943687,0.00037252,2]
[391975829,1761048639004,-1000.0,0.0003726,11]
[391975831,1761048639015,-1000.0,0.0003728,11]
[391975833,1761048639024,-855.4220693,0.00037283,2]
[391975835,1761048639034,-1000.0,0.000373,11]
[391975837,1761048639045,-990.0,0.000373,2]
[391975839,1761048639055,-990.0,0.000373,3]
[391975841,1761048639065,-3005.59802468,0.000373,5]
[391975843,1761048639075,-800.0,0.00037311,7]
[391975845,1761048639084,-1000.0,0.0003732,11]
[391975847,1761048639096,-13805.7243182,0.00037334,3]
[391975849,1761048639105,-1000.0,0.0003734,11]
[391975851,1761048639115,-162.58942812,0.00037343,10]
[391975853,1761048639125,-855.4220693,0.00037344,2]
[391975855,1761048639134,-6497.8044297,0.00037344,2]
[391975857,1761048639143,-3684.60943687,0.00037344,2]
[391975859,1761048639153,-370000.0,0.00037344,2]
[391975861,1761048639162,-1000.0,0.0003736,11]
[391975863,1761048639172,-800.0,0.00037367,7]
[391975865,1761048639182,-500.0,0.00037373,2]
[391975867,1761048639192,-503.36300446,0.00037373,5]
[391975869,1761048639201,-500.0,0.00037373,5]
[391975871,1761048639212,-500.0,0.00037373,5]
[391975873,1761048639221,-1000.0,0.0003738,11]
[391975875,1761048639231,-1168.737153,0.0003738,11]
[391975877,1761048639240,-1725.71553977,0.0003739,3]
[391975879,1761048639249,-180.0,0.000374,2]
[391975881,1761048639259,-151.0,0.000374,14]
[391975883,1761048639269,-151.0,0.000374,10]
[391975885,1761048639279,-1000.0,0.000374,11]
[391975887,1761048639289,-1000.0,0.000374,11]
[391975889,1761048639298,-150.0,0.000374,2]
[391975891,1761048639307,-205.808469,0.000374,2]
[391975893,1761048639316,-168.0,0.00037401,2]
[391975895,1761048639325,-6248.2139529,0.00037414,2]
[391975897,1761048639335,-2170.6360387,0.00037414,2]
[391975899,1761048639345,-1725.71553977,0.00037425,3]
[391975901,1761048639354,-8628.57769885,0.00037434,3]
[391975903,1761048639364,-34072.8481108,0.00037435,2]
[391975905,1761048639374,-6651.8499285,0.00037435,2]
[391975907,1761048639385,-1820.074523,0.00037435,2]
[391975909,1761048639395,-200.73278272,0.00037443,10]
[391975911,1761048639405,-428966.79968884,0.00037444,7]
[391975914,1761048639421,-628770.97848246,0.00037444,7]
[391975916,1761048639433,-985.82384296,0.00037444,7]
[391976283,1761048642886,-5000.0,0.00024953,2]
[391976285,1761048642896,-500.0,0.00037373,5]
[391976287,1761048642906,-22366.8368022,0.00037444,7]
[391977475,1761048680163,200.0,0.00033836,120]
[391977478,1761048785136,707.260623,0.00013699,2]
[391977479,1761048785343,707.260623,0.00020187,2]
[391977480,1761048831696,340.68802081,0.00033852,120]
[391977481,1761048846898,12920.57,0.00033852,60]
[391977482,1761048847161,12920.57,0.00033852,60]
[391977483,1761048847401,12920.57,0.00033852,60]
[391977484,1761048847691,12920.57,0.00033852,60]
[391977485,1761048847968,12920.57,0.00033852,60]
[391977486,1761048848206,12920.57,0.00033852,60]
[391977487,1761048848445,12920.57,0.00033852,60]
[391977488,1761048848687,12920.57,0.00033852,60]
[391977489,1761048848941,12920.57,0.00033852,60]
[391977490,1761048849208,12920.57,0.00033852,60]
[391977491,1761048849449,12920.57,0.00033852,60]
[391977492,1761048849690,12920.57,0.00033852,60]
[391977493,1761048849926,12920.57,0.00033852,60]
[391977494,1761048850154,12920.57,0.00033852,60]
[391977495,1761048850402,12920.57,0.00033852,60]
[391977496,1761048850641,12920.57,0.00033852,60]
[391977497,1761048850894,12920.57,0.00033852,60]
[391977498,1761048851134,12920.57,0.00033852,60]
[391977499,1761048851389,12920.57,0.00033852,60]
[391977500,1761048851638,12920.57,0.00033852,60]
[391977501,1761048851873,12920.57,0.00033852,60]
[391977502,1761048852106,12920.57,0.00033852,60]
[391977503,1761048852336,12920.57,0.00033852,60]
[391977504,1761048852589,12920.75893362,0.00033852,60]
[391977505,1761048980730,500.0,0.00033852,120]
[391977506,1761048980965,500.0,0.00033852,120]
[391977507,1761048981210,500.0,0.00033852,120]
[391977508,1761048981470,500.0,0.00033852,120]
[391977509,1761048981766,500.0,0.00033852,120]
[391977510,1761048981997,500.0,0.00033852,120]
[391977511,1761048982249,500.0,0.00033852,120]
[391977512,1761048982474,500.0,0.00033852,120]
[391977513,1761048982714,500.0,0.00033852,120]
[391977514,1761048982957,500.0,0.00033852,120]
[391977515,1761048983025,200.0,0.00033852,120]
[391977516,1761048983196,500.0,0.00033852,120]
[391977517,1761048983444,500.0,0.00033852,120]
[391977518,1761048983692,503.01000004,0.00033852,120]
[391977519,1761048988674,417.15472785,0.00024072,2]
[391977520,1761049047089,5000.0,0.00024072,2]
[391977521,1761049063073,5000.0,0.00024072,2]
[391977522,1761049071896,0.01,0.00024072,2]
[391977523,1761049071921,3524.52833383,0.00024072,2]
[391977524,1761049087533,5000.0,0.00024072,2]
[391977525,1761049110497,5000.0,0.00024072,2]
[391977526,1761049133356,0.01,0.00024072,2]
[391977527,1761049133380,4999.99,0.00024072,2]
[391977528,1761049156656,5000.0,0.00024072,2]
[391977529,1761049180059,5000.0,0.00024072,2]
[391977530,1761049188394,1231.842321,0.00024072,2]
[391977531,1761049204072,3768.167679,0.00024072,2]
[391977532,1761049204097,1231.832321,0.00024072,2]
[391977533,1761049212651,3768.157679,0.00024072,2]
[391977534,1761049229438,5000.0,0.00024072,2]
[391977535,1761049253301,0.02,0.00024072,2]
[391977536,1761049253324,4999.98,0.00024072,2]
[391977537,1761049276428,5000.0,0.00024072,2]
[391977538,1761049280710,200.0,0.00033829,120]
[391977539,1761049348868,150.0,0.00033829,30]
[391977541,1761049580777,200.0,0.00033828,120]
[391977542,1761049684373,-95000.0,0.00027248,30]
[391977543,1761049684400,-256.379,0.00027479,16]
[391977544,1761049684425,-1260.49,0.000286,7]
[391977545,1761049684450,-3202.0,0.0003,30]
[391977546,1761049684473,-151.0,0.0003,14]
[391977547,1761049684498,-1000.0,0.0003,14]
[391977548,1761049684523,-200.0,0.000301,7]
[391977549,1761049684548,-200.0,0.0003051,7]
[391977550,1761049684572,-202.71,0.0003091,7]
[391977551,1761049684597,-200.0,0.00031,7]
[391977552,1761049684621,-200.0,0.0003151,7]
[391977553,1761049684645,-200.0,0.000321,7]
[391977554,1761049684670,-186.66718,0.00032988,14]
[391977555,1761049684707,-1260.49,0.000335,7]
[391977556,1761049684738,-589.03,0.00033675,10]
[391977557,1761049684765,-490.86,0.00033675,10]
[391977558,1761049684792,-848.2,0.00033685,10]
[391977559,1761049684820,-706.83,0.00033695,10]
[391977560,1761049684845,-12500.0,0.00033705,10]
[391977561,1761049684871,-186.66718,0.00033746,20]
[391977562,1761049684896,-153.360015,0.00033746,20]
[391977563,1761049684930,-5000.0,0.00033828,30]
[391977564,1761049684955,-5000.0,0.00033828,30]
[391977565,1761049684981,-150.0,0.00033829,30]
[391977566,1761049685007,-186.66718,0.000339,60]
[391977567,1761049685037,-153.360015,0.000339,60]
[391977568,1761049685067,-500.0,0.00034498,7]
[391977569,1761049685102,-304.06,0.00034631,30]
[391977570,1761049685127,-1444.0,0.00034849,120]
[391977571,1761049685154,-186.66718,0.00034948,14]
[391977572,1761049685179,-153.360015,0.00034948,14]
[391977573,1761049685205,-186.66718,0.00035184,20]
[391977574,1761049685232,-153.360015,0.00035184,20]
[391977575,1761049685258,-151.0,0.000355,17]
[391977576,1761049685430,-231.0,0.00035626,120]
[391977577,1761049685458,-150.27411997,0.000358,60]
[391977578,1761049685484,-1000.0,0.00035836,90]
[391977579,1761049685510,-151.0,0.000359,17]
[391977580,1761049685536,-2007.63,0.00036,36]
[391977581,1761049685560,-168.63598432,0.00036191,30]
[391977582,1761049685584,-151.0,0.000362,19]
[391977583,1761049685611,-231.0,0.00036594,7]
[391977584,1761049685636,-188.2921001,0.00036599,15]
[391977585,1761049685660,-1260.49,0.000366,7]
[391977586,1761049685684,-151.0,0.000366,19]
[391977587,1761049685707,-151.145192,0.00036623,20]
[391977588,1761049685737,-186.66718,0.00036623,20]
[391977589,1761049685762,-153.360015,0.00036623,20]
[391977590,1761049685788,-158.46756255,0.0003663,30]
[391977591,1761049685816,-158.46756255,0.0003663,30]
[391977592,1761049685841,-158.46756255,0.0003663,30]
[391977593,1761049685866,-29510.36870404,0.000367,16]
[391977594,1761049685891,-151.145192,0.00036909,14]
[391977595,1761049685916,-186.66718,0.00036909,14]
[391977596,1761049685942,-153.360015,0.00036909,14]
[391977597,1761049685971,-231.0,0.00036957,120]
[391977598,1761049686003,-500.0,0.00036973,5]
[391977599,1761049686029,-572.63994276,0.00036973,5]
[391977600,1761049686054,-500.0,0.00036973,5]
[391977601,1761049686078,-500.0,0.00036973,5]
[391977602,1761049686103,-500.0,0.00036973,5]
[391977603,1761049686127,-254.26083572,0.00036999,5]
[391977604,1761049686150,-200.73278272,0.00036999,10]
[391977605,1761049686174,-162.58942812,0.00036999,10]
[391977606,1761049686199,-327356.5136806,0.00037,30]
[391977607,1761049689652,-500000.0,0.00037,30]
[391977608,1761049692953,-409.05,0.00036431,10]
[391977609,1761049692982,-334609.1863194,0.00037,30]
[391977610,1761049693008,-403.05172659,0.00037,30]
[391977611,1761049693033,-151.0,0.00037,18]
[391977612,1761049693057,-151.0,0.00037,15]
[391977613,1761049693081,-151.0,0.00037,15]
[391977614,1761049693104,-151.0,0.00037,16]
[391977615,1761049693132,-151.0,0.00037,20]
[391977616,1761049693159,-10830.07,0.00037,14]
[391977617,1761049693183,-9836.78,0.00037044,17]
[391977618,1761049693205,-158.46756255,0.00037096,30]
[391977619,1761049693229,-158.46756255,0.00037096,30]
[391977620,1761049693253,-158.46756255,0.00037096,30]
[391977621,1761049693276,-1862.422918,0.0003718,11]
[391977622,1761049693301,-29510.34,0.000372,17]
[391977623,1761049693325,-1000.0,0.000372,11]
[391977624,1761049693351,-400.0,0.00037206,7]
[391977625,1761049693375,-800.0,0.00037213,7]
[391977626,1761049693399,-1000.0,0.0003722,11]
[391977627,1761049693425,-800.0,0.00037233,7]
[391977628,1761049693453,-1000.0,0.0003724,11]
[391977629,1761049693479,-800.0,0.00037243,7]
[391977630,1761049693503,-8761.83866256,0.00037244,14]
[391977631,1761049693529,-800.0,0.00037255,7]
[391977632,1761049693553,-800.0,0.00037258,7]
[391977633,1761049693577,-1000.0,0.0003726,11]
[391977634,1761049693600,-1000.0,0.0003728,11]
[391977635,1761049693625,-1000.0,0.000373,11]
[391977636,1761049693649,-800.0,0.000373,7]
[391977637,1761049693674,-800.0,0.00037311,7]
[391977638,1761049693700,-1000.0,0.0003732,11]
[391977639,1761049693726,-437.98474692,0.00037334,7]
[391977640,1761049693750,-1000.0,0.0003734,11]
[391977641,1761049693776,-231.0,0.00037351,7]
[391977642,1761049693801,-1000.0,0.0003736,11]
[391977643,1761049693826,-1000.0,0.0003738,11]
[391977644,1761049693850,-1168.737153,0.0003738,11]
[391977645,1761049693874,-1000.0,0.000374,11]
[391977646,1761049693898,-1000.0,0.000374,11]
[391977647,1761049693923,-250.0,0.000374,10]
[391977648,1761049693948,-800.0,0.00037414,7]
[391977649,1761049693973,-800.0,0.00037421,7]
[391977650,1761049694003,-403.05172659,0.00037444,7]
[391977651,1761049694027,-500.0,0.00037444,14]
[391977652,1761049694051,-500.0,0.00037444,14]
[391977653,1761049694076,-151.0,0.00037444,120]
[391977654,1761049694100,-245.301205,0.00037444,120]
[391977655,1761049694126,-152.012953,0.00037444,30]
[391977656,1761049694152,-277.361074,0.00037444,120]
[391977657,1761049694178,-151.0,0.00037444,120]
[391977658,1761049694204,-151.0,0.00037444,120]
[391977659,1761049694233,-151.0,0.00037444,120]
[391977660,1761049694259,-151.0,0.00037444,120]
[391977661,1761049694284,-151.754635,0.00037444,120]
[391977662,1761049694310,-151.0,0.00037444,120]
[391977663,1761049694334,-161.295173,0.00037444,120]
[391977664,1761049694359,-152.923304,0.00037444,120]
[391977665,1761049694481,-151.0,0.00037444,120]
[391977666,1761049694506,-157.120058,0.00037444,120]
[391977667,1761049694532,-151.0,0.00037444,15]
[391977668,1761049694557,-151.0,0.00037444,15]
[391977669,1761049694581,-151.0,0.00037444,15]
[391977670,1761049694606,-155.346384,0.00037444,120]
[391977671,1761049694630,-154.286573,0.00037444,120]
[391977672,1761049694655,-151.0,0.00037444,120]
[391977673,1761049694681,-151.0,0.00037444,120]
[391977674,1761049694708,-154.160189,0.00037444,120]
[391977675,1761049694735,-154.160189,0.00037444,120]
[391977676,1761049694760,-226.489352,0.00037444,120]
[391977677,1761049694784,-154.160189,0.00037444,120]
[391977678,1761049694808,-154.160189,0.00037444,120]
[391977679,1761049694833,-151.0,0.00037444,120]
[391977680,1761049694862,-151.0,0.00037444,120]
[391977681,1761049694887,-74891.55259229,0.00037444,7]
[391977682,1761049697864,3130.03562622,0.00024,2]
[391977683,1761049702093,-500000.0,0.00037444,7]
[391977684,1761049705784,-5000.0,0.00033827,30]
[391977685,1761049705812,-302.4,0.0003463,30]
[391977686,1761049705843,-340.87,0.00036889,10]
[391977687,1761049705870,-151.0,0.00037444,120]
[391977688,1761049705895,-151.0,0.00037444,120]
[391977689,1761049705922,-515.273354,0.00037444,120]
[391977690,1761049705950,-515.273354,0.00037444,120]
[391977691,1761049705978,-515.273354,0.00037444,120]
[391977692,1761049706006,-515.273354,0.00037444,120]
[391977693,1761049706036,-151.0,0.00037444,120]
[391977694,1761049706061,-151.0,0.00037444,120]
[391977695,1761049706087,-151.0,0.00037444,120]
[391977696,1761049706113,-280.178679,0.00037444,120]
[391977697,1761049706138,-153.541629,0.00037444,120]
[391977698,1761049706160,-150.0,0.00037444,60]
[391977699,1761049706184,-1313.48,0.000375,14]
[391977700,1761049706208,-250.0,0.000375,10]
[391977701,1761049706232,-503.36300446,0.00037521,5]
[391977702,1761049706260,-1000.0,0.00037521,5]
[391977703,1761049706287,-250.0,0.000376,10]
[391977704,1761049706312,-200.0,0.00037607,120]
[391977705,1761049706338,-186.66718,0.00037675,60]
[391977706,1761049706363,-153.360015,0.00037675,60]
[391977707,1761049706387,-250.0,0.000377,10]
[391977708,1761049706411,-604.8,0.00037778,30]
[391977709,1761049706435,-331.149845,0.000378,10]
[391977710,1761049706463,-150.0,0.00037808,30]
[391977711,1761049706486,-150.0,0.00037808,30]
[391977712,1761049706512,-150.0,0.00037808,30]
[391977713,1761049706535,-189.28462636,0.00037808,30]
[391977714,1761049706561,-150.0,0.00037808,30]
[391977715,1761049706585,-150.0,0.00037808,30]
[391977716,1761049706609,-207.34712528,0.00038,7]
[391977717,1761049706636,-200.0,0.00038,14]
[391977718,1761049706661,-2262.86416799,0.00038,30]
[391977719,1761049706684,-186.66718,0.00038062,20]
[391977720,1761049706709,-153.360015,0.00038062,20]
[391977721,1761049706733,-1500.0,0.00038068,5]
[391977722,1761049706757,-199.0,0.0003809,48]
[391977723,1761049706788,-600.0,0.00038192,30]
[391977724,1761049706813,-5000.0,0.00038356,5]
[391977725,1761049706844,19994.76044341,0.00033,7]
[391977726,1761049706877,151.0,0.00037444,120]
[391977727,1761049707905,151.0,0.00037444,120]
[391977728,1761049708630,150.0,0.00037444,60]
[391977729,1761049709383,6869.97437378,0.0002,2]
[391977730,1761049709406,7677.43829215,0.0002,2]
[391977731,1761049711461,2322.57170785,0.00017,2]
[391977732,1761049711484,10000.01,0.00017,2]
[391977733,1761049711505,10000.01,0.00017,2]
[391977734,1761049711526,5980.10077878,0.00017,2]
[391977735,1761049712444,307.79135254,0.00038356,5]
[391977736,1761049712496,500.0,0.00033826,7]
[391977737,1761049712547,500.0,0.00033826,7]
[391977738,1761049712605,500.0,0.00033826,7]
[391977739,1761049712657,285.1069595,0.00033826,7]
[391977740,1761049713366,15322.03215328,0.00024,60]
[391977741,1761049714004,284.06,0.0002903,10]
[391977742,1761049714096,81307.60823599,0.00033,5]
[391977743,1761049715871,200.04428301,0.00033828,120]
[391977744,1761049716290,4019.90922122,0.00018,2]
[391977745,1761049716314,3003.52108671,0.00018,2]
[391977746,1761049719011,543.4990165,0.0002,2]
[391977747,1761049719848,1274.41244026,0.00021,2]
[391977748,1761049720045,200.54028161,0.0002,2]
[391977749,1761049721370,205.12093604,0.00021,2]
[391977750,1761049721403,-250.0,0.00033827,10]
[391977751,1761049721429,-250.0,0.00033827,10]
[391977752,1761049721455,-250.0,0.00033827,10]
[391977753,1761049721481,-250.0,0.00033827,10]
[391977754,1761049721517,-250.501735,0.00033827,10]
[391977755,1761049721623,1021.83332037,0.000225,2]
[391977756,1761049721654,3751.08291851,0.00023,2]
[391977757,1761049721676,1578.53352656,0.00023,2]
[391977758,1761049721703,8421.47647344,0.000215,2]
[391977759,1761049721724,1947.05753358,0.000215,2]
[391977760,1761049722080,1000.0,0.000235,2]
[391977761,1761049722327,168.59,0.00024,14]
[391977763,1761049723059,2343.68500108,0.0001,2]
[391977764,1761049724552,4540.67746534,0.00024,30]
[391977765,1761049724574,5181.41467618,0.00024,30]
[391977766,1761049725327,9627.96292076,0.00033827,30]
[391977767,1761049759746,636.71,0.00033827,120]
[391977768,1761049759989,636.71,0.00033827,120]
[391977769,1761049760283,636.71,0.00033827,120]
[391977770,1761049760518,636.71,0.00033827,120]
[391977771,1761049760764,636.71,0.00033827,120]
[391977772,1761049760992,636.71,0.00033827,120]
[391977773,1761049761225,636.71,0.00033827,120]
[391977774,1761049761497,636.71,0.00033827,120]
[391977775,1761049761790,636.71,0.00033827,120]
[391977776,1761049762382,636.71,0.00033827,120]
[391977777,1761049762610,636.71,0.00033827,120]
[391977778,1761049762858,636.71,0.00033827,120]
[391977779,1761049763095,636.71,0.00033827,120]
[391977780,1761049763338,636.71,0.00033827,120]
[391977781,1761049763575,636.71,0.00033827,120]
[391977782,1761049763822,636.71,0.00033827,120]
[391977783,1761049764069,636.71,0.00033827,120]
[391977784,1761049764310,636.71,0.00033827,120]
[391977785,1761049764559,636.71,0.00033827,120]
[391977786,1761049764824,636.71,0.00033827,120]
[391977787,1761049765072,636.71,0.00033827,120]
[391977788,1761049765314,636.71,0.00033827,120]
[391977789,1761049765567,636.71,0.00033827,120]
[391977790,1761049765812,636.71,0.00033827,120]
[391977791,1761049800527,3914.95,0.00033827,120]
[391977792,1761049800780,3914.95,0.00033827,120]
[391977793,1761049801028,3914.95,0.00033827,120]
[391977794,1761049801283,3914.95,0.00033827,120]
[391977795,1761049803968,3914.95,0.00033827,120]
[391977796,1761049804237,3914.95,0.00033827,120]
[391977797,1761049804470,3914.95,0.00033827,120]
[391977798,1761049805344,3914.95,0.00033827,120]
[391977799,1761049805601,3914.95,0.00033827,120]
[391977800,1761049805844,3914.95,0.00033827,120]
[391977801,1761049806101,3914.95,0.00033827,120]
[391977802,1761049806362,3914.95,0.00033827,120]
[391977803,1761049806604,3914.95,0.00033827,120]
[391977804,1761049806846,3914.95,0.00033827,120]
[391977805,1761049807072,3914.95,0.00033827,120]
[391977806,1761049807100,196.0,0.00016,2]
[391977807,1761049807307,3914.95,0.00033827,120]
[391977808,1761049807339,196.0,0.00016084,2]
[391977809,1761049807546,3914.95,0.00033827,120]
[391977810,1761049807573,196.0,0.00016168,2]
[391977811,1761049807715,196.0,0.00016252,2]
[391977812,1761049807877,3914.95,0.00033827,120]
[391977813,1761049807918,196.0,0.00016336,2]
[391977814,1761049808140,3914.95,0.00033827,120]
[391977815,1761049808170,196.0,0.0001642,2]
[391977816,1761049808314,196.0,0.00016504,2]
[391977817,1761049808409,3914.95,0.00033827,120]
[391977818,1761049808520,196.0,0.00016588,2]
[391977819,1761049808668,3914.95,0.00033827,120]
[391977820,1761049808708,196.0,0.00016672,2]
[391977821,1761049808941,3914.95,0.00033827,120]
[391977822,1761049808971,196.0,0.00016756,2]
[391977823,1761049809130,196.0,0.0001684,2]
[391977824,1761049809201,3914.95,0.00033827,120]
[391977825,1761049809355,196.0,0.00016924,2]
[391977826,1761049809442,3915.05,0.00033827,120]
[391977827,1761049809562,196.0,0.00017008,2]
[391977828,1761049809771,196.0,0.00017092,2]
[391977829,1761049810017,196.0,0.00017176,2]
[391977830,1761049810258,196.0,0.0001726,2]
[391977831,1761049810459,196.0,0.00017344,2]
[391977832,1761049810748,196.0,0.00017428,2]
[391977833,1761049810855,196.0,0.00017512,2]
[391977834,1761049811082,196.0,0.00017596,2]
[391977835,1761049811289,196.0,0.0001768,2]
[391977836,1761049811499,196.0,0.00017764,2]
[391977837,1761049811686,196.0,0.00017848,2]
[391977838,1761049811886,196.0,0.00017932,2]
[391977839,1761049812084,114.59532382,0.00018016,2]
[391977840,1761049812109,81.40467618,0.00018016,2]
[391977841,1761049812560,259.31045635,0.000181,2]
[391977842,1761049825969,994.57,0.00033827,120]
[391977843,1761049826230,994.57,0.00033827,120]
[391977844,1761049826552,994.57,0.00033827,120]
[391977845,1761049826797,994.57,0.00033827,120]
[391977846,1761049827058,994.57,0.00033827,120]
[391977847,1761049827299,994.57,0.00033827,120]
[391977848,1761049827538,994.57,0.00033827,120]
[391977849,1761049827774,994.57,0.00033827,120]
[391977850,1761049828028,994.57,0.00033827,120]
[391977851,1761049828279,994.57,0.00033827,120]
[391977852,1761049828554,994.57,0.00033827,120]
[391977853,1761049828785,994.57,0.00033827,120]